Cogmind - Beta 16 @@@ ROGUE MODE // 2025.12.27 @ 01:56:50 Player: Centeno Result: Destroyed by S-10 Pest with Light Assault Rifle Performance ------------- Evolutions (1) 500 Regions Visited (3) 600 Robots Destroyed (21) 105 Value Destroyed (254) 254 Prototype IDs (8) 160 Alien Tech Used (0) 0 Bonus (0) 0 TOTAL SCORE: 1619 Bonus ------- None Cogmind --------- Core Integrity 0/400 Matter 298/300 Energy 83/100 System Corruption 0% Temperature Cool (4) Movement Flying (37) Location -9/Materials Parts ------- > --- POWER (1) -------- (None) > --- PROPULSION (3) --- Flight Unit Improved Flight Unit > --- UTILITY (3) ------ Seismic Detector > --- WEAPON (2) ------- Mining Claw > --- INVENTORY (5) ---- Improved Hover Unit Improved Medium Laser Flail Peak State ------------ > --- POWER ------------ Light Ion Engine > --- PROPULSION ------- VTOL Module VTOL Module > --- UTILITY ---------- Experimental Sensor Array Seismic Detector > --- WEAPON ----------- EM Pulse Gun Hammer > --- INVENTORY -------- Flight Unit VTOL Module VTOL Module Seismic Detector Improved Medium Laser [Rating: 17] Favorites ----------- Power Light Ion Engine Engine Light Ion Engine Propulsion VTOL Module Leg Aluminum Leg Flight Unit VTOL Module Utility Seismic Detector Device Seismic Detector Storage Small Storage Unit Weapon Hammer Energy Gun EM Pulse Gun Impact Weapon Hammer Slashing Weapon Mining Claw Build | -11 -10 -10 -9 ------- Run | Yrd Mat Min Mat Slots Evolved 2 | . . . 2 Power . | . . . . Propulsion 1 | . . . 1 Utility 1 | . . . 1 Weapon . | . . . . Parts Attached 28 | 7 11 1 9 Power 4 | 1 2 . 1 Engine 4 | 1 2 . 1 Core . | . . . . Reactor . | . . . . Propulsion 12 | 2 4 . 6 Treads . | . . . . Leg 2 | 2 . . . Wheel . | . . . . Hover . | . . . . Flight 10 | . 4 . 6 Utility 4 | 2 1 1 . Device 3 | 1 1 1 . Storage 1 | 1 . . . Processor . | . . . . Hackware . | . . . . Protection . | . . . . Artifact . | . . . . Weapon 8 | 2 4 . 2 Energy Gun 5 | 2 3 . . Energy Cannon . | . . . . Ballistic Gun . | . . . . Ballistic Cannon . | . . . . Launcher . | . . . . Special Weapon . | . . . . Impact Weapon 2 | . 1 . 1 Slashing Weapon 1 | . . . 1 Piercing Weapon . | . . . . Special Melee Weapon . | . . . . Unidentified Prototypes 2 | . 1 1 . Parts Lost 11 | . . . 11 Power 2 | . . . 2 Propulsion 6 | . . . 6 Utility 1 | . . . 1 Weapon 2 | . . . 2 Highest Loss Streak 4 | . . . 4 To Critical Strikes . | . . . . Average Backups 3 | 1 4 5 4 Power . | . . . . Propulsion 1 | . 1 3 1 Utility . | . . 1 . Weapon 1 | . 1 1 1 Tool/Special . | . . . . Unused Backups 6 | . 3 . 3 Power . | . . . . Propulsion 3 | . 2 . 1 Utility 1 | . . . 1 Weapon 2 | . 1 . 1 Tool/Special . | . . . . Average Slot Usage (%) 79 | . 89 85 63 Engine 10 | . 14 14 4 Leg 3 | . 7 . . Flight 24 | . 20 28 28 Device 12 | . 14 14 8 Storage 1 | . 3 . . Energy Gun 12 | . 18 14 5 Impact Weapon 10 | . 9 14 11 Slashing Weapon 1 | . . . 4 Peak Build Rating 17 | 7 10 17 12 Average Rating 7 | 4 7 8 8 On Entrance 5 | . 7 8 8 Avg Prop Armor Cover (%) . | . . . . Naked Turns . | . . . . Heaviest Build 14 | 14 14 8 11 Greatest Support 20 | 20 20 8 15 Greatest Overweight (x) 1 | . . . 1 Average Overweight (x) . | . . . . Largest Inventory Capacity 8 | 8 8 5 5 Average Capacity 5 | 6 5 5 5 Most Carried 5 | 2 5 5 5 Average Carried 3 | 1 4 5 4 Final Capacity 8 | 8 5 5 5 Final Carried 5 | 2 5 5 3 Class Distribution -------------------- 67% | Sprinter 32% | Mutant Dominant Class ---------------- Sprinter | -10/Materials Sprinter | -10/Mines Sprinter | -9/Materials Resources | -11 -10 -10 -9 ----------- Run | Yrd Mat Min Mat Matter Collected 443 | 249 131 . 63 Remotely . | . . . . Salvage Created 347 | 30 187 32 98 Parts 21 | 4 13 3 1 Haulers Intercepted 1 | . 1 . . Recyclers Shooed . | . . . . Parts Field Recycled . | . . . . Retrieved Matter . | . . . . Parts Self-Destructed . | . . . . Prevented . | . . . . Parts Restored . | . . . . Kills | -11 -10 -10 -9 ------- Run | Yrd Mat Min Mat Combat Hostiles Destroyed 10 | . 6 2 2 Melee 6 | . 2 2 2 Guns 3 | . 3 . . Classes Destroyed 5 | 1 4 . . Tunneler 2 | 2 . . . Hauler 1 | . 1 . . Operator 3 | . 1 . 2 Watcher 5 | . 3 . 2 Swarmer 10 | . 6 2 2 Best Kill Streak 4 | 2 4 1 2 Combat Bots Only 3 | . 3 1 2 Max Kills in Single Turn 2 | 2 1 1 1 Gunslinging . | . . . . Exploded . | . . . . Melee 1 | . 1 1 1 Uniques/NPCs Destroyed . | . . . . Combat | -11 -10 -10 -9 -------- Run | Yrd Mat Min Mat Hostile Shots Fired 197 | . 31 16 150 Missed 81 | . 12 5 64 Hits 116 | . 19 11 86 Projectile 116 | . 19 11 86 Critical Strikes 1 | . . . 1 Damage Taken 1114 | . 149 81 884 Core 446 | . 27 16 403 Absorbed by Shields . | . . . . Core Remaining (%) 91 | 100 . 82 . Volleys Fired 9 | 2 5 . 2 Largest 2 | 2 2 . 1 Hottest 80 | 80 80 . 56 Shots Fired 16 | 4 10 . 2 Gun 16 | 4 10 . 2 Cannon . | . . . . Launcher . | . . . . Special . | . . . . Kinetic . | . . . . Thermal 9 | 2 5 . 2 Explosive . | . . . . Electromagnetic 7 | 2 5 . . Robot Hit Streak 7 | 2 5 . 7 Robot Miss Streak 1 | 1 1 . . Penetration Max . | . . . . Secondary Targets . | . . . . Shots Hit Robots 43 | 3 22 4 14 Core Hits 11 | 2 7 . 2 Critical Kills . | . . . . Critical Parts Destroyed 8 | . 4 2 2 Critical Strikes 9 | . 5 2 2 Corrupt 1 | . 1 . . Smash 8 | . 4 2 2 Melee Attacks 79 | . 29 11 39 Impact 70 | . 29 11 30 Slashing 9 | . . . 9 Piercing . | . . . . Sneak Attacks 1 | . 1 . . Combat Hostiles . | . . . . Follow-up Attacks 7 | . . . 7 Damage Inflicted 1253 | 137 624 101 391 Guns 143 | 37 68 . 38 Cannons . | . . . . Explosions 100 | 100 . . . Melee 1010 | . 556 101 353 Ramming . | . . . . Kinetic . | . . . . Thermal 206 | 112 56 . 38 Explosive . | . . . . Electromagnetic 37 | 25 12 . . Impact 940 | . 556 101 283 Slashing 70 | . . . 70 Piercing . | . . . . Highest Corruption . | . . . . Average Corruption . | . . . . Corruption Purged . | . . . . Corruption Blocked . | . . . . Overload Shots . | . . . . Overflow Damage 376 | . 174 62 140 Projectiles . | . . . . Explosions . | . . . . Melee 376 | . 174 62 140 Knockbacks 3 | . 2 . 1 Impact 3 | . 2 . 1 Kinetic . | . . . . Secondary . | . . . . Self-Inflicted Damage . | . . . . Shots . | . . . . Rammed . | . . . . Targets Rammed . | . . . . Kicked . | . . . . Crushed . | . . . . Highest Temperature 72 | 36 72 . 24 Average Temperature 23 | 20 33 . 9 Received Heat Transfer 201 | . . . 201 Siege Activations . | . . . . Martial Activations . | . . . . Shielding Activations . | . . . . Robots Disrupted . | . . . . Combat Hostiles . | . . . . Robots Corrupted 5 | . 3 . 2 Combat Hostiles 1 | . 1 . . Parts Fried 7 | . 4 . 3 Impact Corruptions 21 | . 8 3 10 Robots Melted . | . . . . Combat Hostiles . | . . . . Parts Melted . | . . . . Heat Transferred 324 | 125 125 . 74 Parts Sabotaged . | . . . . Parts Stolen . | . . . . Parts Stripped . | . . . . Power Chain Reactions 1 | 1 . . . Alert | -11 -10 -10 -9 ------- Run | Yrd Mat Min Mat Maximum Alert Level 1 | . . . 1 Low Security (%) 96 | 100 100 100 89 Level 1 3 | . . . 10 Level 2 . | . . . . Level 3 . | . . . . Level 4 . | . . . . Level 5 . | . . . . High Security . | . . . . Max Security . | . . . . Peak Influence 257 | 10 113 71 257 Initial 36 | . . 36 7 Average 60 | . 64 45 80 Influence Increases 767 | 10 235 55 467 Destroy 0b10 Robot/C 200 | . 120 40 40 Destroy 0b10 Robot/NC 55 | 10 25 . 20 Destroy Leader 42 | . 28 . 14 Successful Hack 41 | . 13 . 28 Disable Machine 15 | . 15 . . Destroy Structure 9 | . 4 . 5 Partial Spotted 45 | . . . 45 Lose Combat Pursuer 360 | . 30 15 315 Influence Decreases 520 | 10 140 129 241 Entered New Map 73 | . . 59 14 Time Decay 340 | 10 140 70 120 Lost Part 107 | . . . 107 Squads Dispatched 4 | . 2 . 2 Investigation 2 | . 2 . . Extermination . | . . . . Reinforcement 2 | . . . 2 Assault . | . . . . Garrison . | . . . . Intercept . | . . . . Searches Triggered . | . . . . Construction Impeded . | . . . . Haulers Reinforced . | . . . . Active Scanning Responses . | . . . . Cargo Convoy Interrupts . | . . . . Stealth | -11 -10 -10 -9 --------- Run | Yrd Mat Min Mat Distress Signals 1 | . . . 1 Communications Jammed . | . . . . Distress Signals . | . . . . Times Spotted 57 | . 13 3 41 Peak Tracking Total 14 | . 3 3 14 Tactical Retreats 11 | . 2 1 8 Traps | -11 -10 -10 -9 ------- Run | Yrd Mat Min Mat Traps Triggered 2 | . 1 . 1 Indirectly . | . . . . Trap Hack Attempts . | . . . . Triggered . | . . . . Disarmed . | . . . . Reprogrammed . | . . . . Reused . | . . . . Traps Extracted . | . . . . Installed . | . . . . Triggered . | . . . . Machines | -11 -10 -10 -9 ---------- Run | Yrd Mat Min Mat Machines Disabled 1 | . 1 . . Max in Single Turn 1 | . 1 . . Machines Repaired . | . . . . Machines Dismantled . | . . . . Machines Sabotaged . | . . . . Overloaded Fab Kills . | . . . . Hacking | -11 -10 -10 -9 --------- Run | Yrd Mat Min Mat Machines Accessed 14 | . 8 . 6 Terminals 10 | . 6 . 4 Fabricators . | . . . . Repair Stations . | . . . . Recycling Units 3 | . 2 . 1 Scanalyzers 1 | . . . 1 Garrison Access . | . . . . Total Hacks 36 | . 18 . 18 Successful 21 | . 11 . 10 Failed 13 | . 6 . 7 Catastrophic 2 | . . . 2 Database Lockouts 2 | . 1 . 1 Manual 23 | . 14 . 9 Terminals 26 | . 16 . 10 Fabricators . | . . . . Repair Stations . | . . . . Recycling Units 6 | . 2 . 4 Scanalyzers 4 | . . . 4 Garrison Access . | . . . . Terminal Hacks 8 | . 5 . 3 Robot Analysis 2 | . 2 . . Prototype ID Bank 3 | . 2 . 1 Branch Access Points 1 | . 1 . . Alert Level 1 | . . . 1 Recall Investigation 1 | . . . 1 Fabricator Hacks . | . . . . Repair Station Hacks . | . . . . Recycling Unit Hacks 4 | . 2 . 2 Report Inventory 3 | . 2 . 1 Retrieve Components 1 | . . . 1 Scanalyzer 3 | . . . 3 Retrieve Study 3 | . . . 3 Garrison Access Hacks . | . . . . Unauthorized Hacks 6 | . 4 . 2 Terminals 6 | . 4 . 2 Botnet 6 | . 4 . 2 Fabricators . | . . . . Repair Stations . | . . . . Recycling Units . | . . . . Scanalyzers . | . . . . Garrison Access . | . . . . Data Cores Recovered . | . . . . Used . | . . . . Hacking Detections 12 | . 7 . 5 Full Trace Events 2 | . 1 . 1 Feedback Events . | . . . . Feedback Blocked . | . . . . Robot Schematics Acquired . | . . . . Robots Built . | . . . . Authchips . | . . . . Time . | . . . . Total Robot Build Rating . | . . . . Part Schematics Acquired . | . . . . Parts Built . | . . . . Authchips . | . . . . Time . | . . . . Total Part Build Rating . | . . . . Part Studies Acquired 3 | . . . 3 Parts Repaired . | . . . . Time . | . . . . Parts Recycled . | . . . . Recycled Matter . | . . . . Retrieved Matter . | . . . . Retrieved Components 2 | . . . 2 Parts Scanalyzed . | . . . . Part Schematics Acquired . | . . . . Parts Damaged . | . . . . Bothacking | -11 -10 -10 -9 ------------ Run | Yrd Mat Min Mat Used RIF Installer . | . . . . Robots Hacked . | . . . . Non-combat . | . . . . Combat . | . . . . Robot Hacks Applied . | . . . . Relay Couplers Released . | . . . . Fabnet Peak Effective % . | . . . . Robots Rewired . | . . . . Allies Hacked . | . . . . Hacks Repelled . | . . . . Allies | -11 -10 -10 -9 -------- Run | Yrd Mat Min Mat Total Allies 3 | . . 3 . Largest Group 3 | . . 3 . Highest-Rated Group 40 | . . 40 . Highest-Rated Ally 16 | . . 16 . Total Orders . | . . . . Ally Attacks . | . . . . Total Damage . | . . . . Kills . | . . . . Allies Corrupted . | . . . . Allies Melted . | . . . . Intel | -11 -10 -10 -9 ------- Run | Yrd Mat Min Mat Active Infowar (turns) 699 | 4 322 154 219 Sensors 2 | . . 2 . Seismic 699 | 4 322 154 219 Robot Analysis Total 2 | . 2 . . Derelict Logs Recovered 2 | . . 2 . Drone Launches . | . . . . Drone Recoveries . | . . . . Exploration | -11 -10 -10 -9 ------------- Run | Yrd Mat Min Mat Turns Passed 817 | 74 322 154 267 Spaces Moved 1268 | 50 444 359 415 Core 11 | 11 . . . Treads . | . . . . Legs 88 | 39 49 . . Wheels . | . . . . Hover . | . . . . Flight 1169 | . 395 359 415 Fastest Speed 29 | 50 32 32 29 Average Speed 38 | 104 42 32 32 Slowest Speed 120 | 120 120 32 112 Overloaded Moves . | . . . . Propulsion Burnouts . | . . . . Robots Hopped 23 | . 1 1 21 Potential Cave-ins . | . . . . Cave-ins Triggered . | . . . . Exploration Rate (%) 54 | 4 66 87 62 Regions Visited 3 Branch Regions 1 Pre-discovered Areas . | . . . . Known Exits Taken 1 | . 1 . . Unknown Exits Taken 2 | 1 . 1 . Scrap Searched . | . . . . Spaces Dug 10 | . 4 . 6 Terrain Destroyed 10 | . 4 . 6 Melee 10 | . 4 . 6 Projectile . | . . . . AOE . | . . . . Terrain Rammed . | . . . . Walls Destroyed . | . . . . Machines Disabled . | . . . . Actions | -11 -10 -10 -9 --------- Run | Yrd Mat Min Mat Total 1426 | 65 520 377 464 Wait 28 | . 5 7 16 Move 1225 | 49 441 356 379 Hop 17 | . 1 1 15 Pick Up 24 | 5 12 . 7 Fast Attach 10 | 6 1 1 2 Attach 10 | 1 2 . 7 Detach 2 | . 2 . . Swap 10 | . 8 . 2 Drop 19 | 2 14 1 2 Fire 9 | 2 5 . 2 Melee 72 | . 29 11 32 Ram . | . . . . Kick . | . . . . Crush . | . . . . Escape Stasis . | . . . . Rewire . | . . . . Trap . | . . . . Miscellaneous . | . . . . Route ------- -11/Scrapyard -10/Materials (discovered 3 exits: *Mat x2 / *Min) -10/Mines (discovered 2 exits: *Mat x2) -9/Materials (discovered 3 exits: *Mat x2 / [*Min]) History --------- Turn | Location | Event 10 | -11/Scrapyard | Discovered new exit (range 16) 75 | -11/Scrapyard | Entered Materials 166 | -10/Materials | Discovered new exit (range 3) 307 | -10/Materials | Discovered new exit (range 15) 332 | -10/Materials | Discovered new exit (range 12) 382 | -10/Materials | Central database locked down 382 | -10/Materials | Identified exit to Mines 397 | -10/Materials | Entered Mines 403 | -10/Mines | Learned Materials security intel 463 | -10/Mines | Learned 8 Materials zone layouts 465 | -10/Mines | Found a damaged Exp. Sensor Array with a note attached 466 | -10/Mines | Found Prototype Device 466 | -10/Mines | Identified Exp. Sensor Array 477 | -10/Mines | Discovered new exit (range 14) 486 | -10/Mines | Assisted by bots powering up and referring to "LRC-V3" 525 | -10/Mines | Discovered new exit (range 5) 527 | -10/Mines | Build established: Sprinter 532 | -10/Mines | YI-UF0 nonchalantly dropped a Grenade Launcher on the ground 551 | -10/Mines | Entered Materials 551 | -9/Materials | Evolved 2 slots: Propulsion x1, Utility x1 552 | -9/Materials | Identified exit to Materials 554 | -9/Materials | Central database locked down 597 | -9/Materials | Discovered new exit (range 14) 740 | -9/Materials | Lost 4 parts (1p2n1u) 788 | -9/Materials | Core integrity fell below 50% 807 | -9/Materials | Core integrity fell below 20% 818 | -9/Materials | Destroyed by S-10 Pest with Light Assault Rifle Last Messages --------------- 00783_ S-10 Pest system corrupted by crushing effect. 00783_ Mining Claw follow-up attack on S-10 Pest. 00783_ S-10 Pest destroyed. 00786_ Destroyed Flight Unit. 00786_ S-10 Pest system corrupted by crushing effect. 00789_ S-10 Pest destroyed. 00793_ VTOL Module+ destroyed. 00795_ Hammer destroyed. 00804_ Acquired Imp. Hover Unit. 00806_ K-01 Serf destroyed. 00809_ Connecting with Terminal... 00810_ K-01 Serf collects debris. 00811_ S-10 Pest destroyed. 00812_ Acquired Flight Unit+. 00815_ G-34 Mercenary destroyed. 00817_ K-01 Serf collects debris. 00817_ Acquired 28 matter. Map ----- +----------------------------------------------------+ | # #####/# ### ## """ """ #? | | ! / ##" ## ## "R """ #? | | # " # """ # """ """ #? | | # # """ ### """ # ??? | | ####### """ #?# """ # " + ??? | | ??????# """ #?# # # ?? | | ??????###########?# ! # #?? ????? | | ??????????????????##########+#######??????? | | ?????????????????????# ! #??????? | | ?????????????????????# #??????? | | ?????????????????????# """%""" """ #??????? | | ?????????????????????# """ """ """ #??????? | | ?????????????????????# """ """ """ #??????? | | ?????????????????????# #??????? | | ?????????????????????#####+#########??????? | | ??????????########??????? ?????????????? | | ??????????# """ #??????? #?????????????? | | ??????????# "T" #??????#u #?????????????? | | #####?????# #??????# #?????????????? | | #?????# #??????# #?????????????? | | #?????# #??????# #?????????????? | | ####### #?????##u ##????????????? | | # ###/########## #????????????? | | # %g s sw =g * #????????????? | | + s % k Y a +????????????? | | # s * /@ #????????????? | | # ############## #????????????? | | ## ##????????????## ##????????????? | | ###### #??????????????# #?????????????? | | # #??????????????# #?????????????? | | # #??????????????# #?????????????? | | # #??????????????# #?????????????? | | """ # #??????????????# #?????????????? | | """ # ########???????# #?????????????? | | """ # # #???????? #?????????????? | | # # #???????? #?????????????? | | % # # #???????? #?????????????? | | ##/### + #???????? +?????????????? | | [ # #???????? #?????????????? | | # #???????? #?????????????? | | ########???????? ??????????????? | | +#########????????????????????????????????? | | #????????????????????????????????????? | | #????????????????????????????????????? | | #????????????????????????????????????? | | """ #????????????????????????????????????? | | """ #????????????????????????????????????? | | """ #????????????????????????????????????? | | #????????????????????????????????????? | | #????????????????????????????????????? | +----------------------------------------------------+ Best States ------------- Heat Dissipation 28 Energy Generation 11 Energy Capacity 250 Matter Stores 300 Matter Capacity 300 Sight Range 16 Terrain Scan Density 10 Evasion (%) 64 Item Schematics ----------------- None Robot Schematics ------------------ None Fabricated ------------ Nothing Repaired ---------- Nothing Studied --------- VTOL Module | -9/Materials | Hacked Flight Unit | -9/Materials | Hacked Lgt. Ion Engine | -9/Materials | Hacked Alien Tech Used ----------------- None Achievements -------------- None Challenges ------------ None Game ------ Seed TiamatPlexusBlade Manual? 0 Play Time 00:23:40 Cumulative 23.9 hours Start 2025.12.27 @ 01:32:54 End 2025.12.27 @ 01:56:50 Sessions 1 Manual Loads 0 Difficulty Rogue Special Mode None Game No. 23 Rogue 23 Adventurer 0 Explorer 0 Win Type - Total 1 Types 1/0/0/0/0/0/0/0/0/0 Lore% 5 Gallery% 22 Achievement% 21 Wizard Run 0 Options --------- Layout 1 ASCII 0 Keyboard 0 Movement Mouse Keybinds 1 Fullscreen 2 Font 24/Smallcaps Map View 25x20 Zoom Use 66% Tactical HUD 1 Map Filters NONE Filters NONE Steam 1 RUN: fe7ba8b3-5a6a-48a1-8d02-30f43ac332ae